fUSD/lending_fUSD_20250610
["ID","MTS","AMOUNT","RATE_DAILY","PERIOD"]
[365266183,1749570340708,-1317.33,0.00016438,2]
[365266184,1749570340729,-226.31,0.00016438,2]
[365266185,1749570340751,-490.0,0.00016438,2]
[365266186,1749570340772,-516.88,0.00016438,2]
[365266187,1749570340793,-490.0,0.00016438,2]
[365266188,1749570340815,-490.0,0.00016438,2]
[365266189,1749570340836,-490.0,0.00016438,2]
[365266190,1749570340858,-540.98,0.00016438,2]
[365266191,1749570340879,-490.0,0.00016438,2]
[365266192,1749570340899,-493.0,0.00016438,2]
[365266193,1749570340920,-490.0,0.00016438,2]
[365266194,1749570340940,-355.46040702,0.00016438,2]
[365266195,1749570340964,-490.0,0.00016438,2]
[365266196,1749570340986,-490.0,0.00016438,2]
[365266197,1749570341006,-490.0,0.00016438,2]
[365266198,1749570341031,-490.0,0.00016438,2]
[365266199,1749570341052,-518.08,0.00016438,2]
[365266200,1749570341072,-490.0,0.00016438,2]
[365266201,1749570341095,-693.4,0.00016438,2]
[365266202,1749570341116,-490.0,0.00016438,2]
[365266203,1749570341136,-490.0,0.00016438,2]
[365266204,1749570341158,-490.0,0.00016438,2]
[365266205,1749570341179,-490.0,0.00016438,2]
[365266206,1749570341203,-490.0,0.00016438,2]
[365266207,1749570341224,-490.0,0.00016438,2]
[365266208,1749570341246,-490.0,0.00016438,2]
[365266209,1749570341269,-490.0,0.00016438,2]
[365266210,1749570341290,-490.0,0.00016438,2]
[365266211,1749570341311,-490.0,0.00016438,2]
[365266212,1749570341334,-490.0,0.00016438,2]
[365266213,1749570341354,-490.0,0.00016438,2]
[365266214,1749570341379,-2486.33,0.00016438,2]
[365266215,1749570341400,-551.0,0.00016438,2]
[365266216,1749570341421,-490.0,0.00016438,2]
[365266217,1749570341441,-490.0,0.00016438,2]
[365266218,1749570341463,-500.49,0.00016438,2]
[365266219,1749570341484,-490.0,0.00016438,2]
[365266220,1749570341505,-490.0,0.00016438,2]
[365266221,1749570341527,-490.0,0.00016438,2]
[365266222,1749570341547,-490.0,0.00016438,2]
[365266223,1749570341568,-490.0,0.00016438,2]
[365266224,1749570341592,-490.0,0.00016438,2]
[365266225,1749570341616,-480.0,0.00016438,2]
[365266226,1749570341638,-490.0,0.00016438,2]
[365266227,1749570341660,-290.13,0.00016438,2]
[365266228,1749570341681,-480.0,0.00016438,2]
[365266229,1749570341703,-490.0,0.00016438,2]
[365266230,1749570341727,-1703.29,0.00016438,2]
[365266231,1749570341748,-490.0,0.00016438,2]
[365266232,1749570341768,-467.79169126,0.00016438,2]
[365266233,1749570341788,-490.0,0.00016438,2]
[365266234,1749570341808,-482.11832571,0.00016438,2]
[365266235,1749570341829,-490.0,0.00016438,2]
[365266236,1749570341851,-490.0,0.00016438,2]
[365266237,1749570341873,-490.0,0.00016438,2]
[365266238,1749570341894,-490.0,0.00016438,2]
[365266239,1749570341914,-867.72711631,0.00016512,2]
[365266240,1749570341934,-207.4,0.00016517,2]
[365266241,1749570341953,-1000.0,0.00016517,2]
[365266242,1749570341974,-1957.856,0.00016517,2]
[365266243,1749570341994,-500.0,0.00016517,2]
[365266244,1749570342014,-500.0,0.00016517,2]
[365266245,1749570342035,-500.0,0.00016517,2]
[365266246,1749570342055,-500.0,0.00016517,2]
[365266247,1749570342076,-500.0,0.00016517,2]
[365266248,1749570342097,-509.0026331,0.00016517,2]
[365266249,1749570342118,-151.0,0.00016517,2]
[365266250,1749570342140,-967.01717058,0.00016572,2]
[365266251,1749570372991,234.0,0.00015611,2]
[365266252,1749570376636,156.42,0.00015902,2]
[365266253,1749570430343,-234.0,0.00016059,2]
[365266254,1749570430365,-300.0,0.00016437,2]
[365266255,1749570430387,-300.0,0.00016437,2]
[365266256,1749570430411,-300.0,0.00016438,2]
[365266257,1749570430433,-490.0,0.00016438,2]
[365266258,1749570430459,-496.17,0.00016438,2]
[365266259,1749570430482,-11955.32,0.00016438,2]
[365266260,1749570430503,-490.0,0.00016438,2]
[365266261,1749570430528,-427.64601858,0.00016438,2]
[365266262,1749570430549,-490.0,0.00016438,2]
[365266263,1749570430571,-480.0,0.00016438,2]
[365266264,1749570430595,-490.0,0.00016438,2]
[365266265,1749570430617,-480.0,0.00016438,2]
[365266266,1749570430640,-490.0,0.00016438,2]
[365266267,1749570430662,-490.0,0.00016438,2]
[365266268,1749570430885,-523.23,0.00016438,2]
[365266269,1749570430907,-490.0,0.00016438,2]
[365266270,1749570430930,-515.48246859,0.00016438,2]
[365266271,1749570430951,-490.0,0.00016438,2]
[365266272,1749570430973,-490.0,0.00016438,2]
[365266273,1749570430993,-490.0,0.00016438,2]
[365266274,1749570431020,-2611.14,0.00016438,2]
[365266275,1749570431041,-490.0,0.00016438,2]
[365266276,1749570431063,-490.0,0.00016438,2]
[365266277,1749570431082,-490.0,0.00016438,2]
[365266278,1749570431106,-631.04,0.00016438,2]
[365266279,1749570431127,-490.0,0.00016438,2]
[365266280,1749570431148,-490.0,0.00016438,2]
[365266281,1749570431169,-490.0,0.00016438,2]
[365266282,1749570431189,-480.0,0.00016438,2]
[365266283,1749570431208,-480.0,0.00016438,2]
[365266284,1749570431228,-490.0,0.00016438,2]
[365266285,1749570431248,-490.0,0.00016438,2]
[365266286,1749570431270,-490.0,0.00016438,2]
[365266287,1749570431291,-490.0,0.00016438,2]
[365266288,1749570431312,-323.15349097,0.00016438,2]
[365266289,1749570431333,-490.0,0.00016438,2]
[365266290,1749570431353,-323.23437861,0.00016438,2]
[365266291,1749570431372,-486.44352158,0.00016438,2]
[365266292,1749570431397,-673.6,0.00016438,2]
[365266293,1749570431418,-490.0,0.00016438,2]
[365266294,1749570431440,-490.0,0.00016438,2]
[365266295,1749570431461,-490.0,0.00016438,2]
[365266296,1749570431483,-460.0,0.00016438,2]
[365266297,1749570431506,-490.0,0.00016438,2]
[365266298,1749570431529,-490.0,0.00016438,2]
[365266299,1749570431550,-603.49,0.00016438,2]
[365266300,1749570431572,-490.0,0.00016438,2]
[365266301,1749570431594,-490.0,0.00016438,2]
[365266302,1749570431617,-642.66,0.00016438,2]
[365266303,1749570431640,-490.0,0.00016438,2]
[365266304,1749570431660,-490.0,0.00016438,2]
[365266305,1749570431680,-490.0,0.00016438,2]
[365266306,1749570431703,-234.0,0.00016507,3]
[365266307,1749570431725,-300.0,0.00016521,2]
[365266308,1749570431746,-166.65,0.00016575,2]
[365266309,1749570431768,-362.19751711,0.00016582,2]
[365266310,1749570431790,-1000.0,0.00016592,2]
[365266311,1749570431812,-151.0,0.00016592,2]
[365266312,1749570431837,-1957.856,0.00016592,2]
[365266313,1749570431860,-796.87,0.00016601,2]
[365266314,1749570431883,-461.25,0.00016601,2]
[365266315,1749570431904,-461.25,0.00016601,2]
[365266316,1749570431926,-461.25,0.00016601,2]
[365266317,1749570431947,-796.87,0.00016601,2]
[365266318,1749570431969,-796.87,0.00016601,2]
[365266319,1749570431990,-796.87,0.00016601,2]
[365266320,1749570432010,-461.25,0.00016601,2]
[365266321,1749570432034,-461.25,0.00016601,2]
[365266322,1749570432055,-490.0,0.00016602,2]
[365266323,1749570432076,-490.0,0.00016602,2]
[365266324,1749570432096,-490.0,0.00016602,2]
[365266325,1749570432119,-490.0,0.00016602,2]
[365266326,1749570432140,-490.0,0.00016602,2]
[365266327,1749570432161,-490.0,0.00016602,2]
[365266328,1749570432182,-490.0,0.00016602,2]
[365266329,1749570432203,-490.0,0.00016602,2]
[365266330,1749570432225,-490.0,0.00016602,2]
[365266331,1749570432246,-490.0,0.00016602,2]
[365266332,1749570432270,-277.53,0.00016602,2]
[365266333,1749570432292,-462.79498813,0.00016602,2]
[365266334,1749570432315,-490.0,0.00016602,2]
[365266335,1749570432336,-490.0,0.00016602,2]
[365266336,1749570432361,-490.0,0.00016602,2]
[365266337,1749570432386,-537.73,0.00016602,2]
[365266338,1749570432410,-490.0,0.00016602,2]
[365266339,1749570432435,-1177.92,0.00016602,2]
[365266340,1749570432457,-490.0,0.00016602,2]
[365266341,1749570432479,-490.0,0.00016602,2]
[365266342,1749570432500,-490.0,0.00016602,2]
[365266343,1749570432526,-650.74,0.00016602,2]
[365266344,1749570432551,-490.0,0.00016602,2]
[365266345,1749570432574,-490.0,0.00016602,2]
[365266346,1749570432598,-490.0,0.00016602,2]
[365266347,1749570432621,-490.0,0.00016602,2]
[365266348,1749570432643,-490.0,0.00016602,2]
[365266349,1749570432666,-490.0,0.00016602,2]
[365266350,1749570432688,-490.0,0.00016602,2]
[365266351,1749570432710,-490.0,0.00016602,2]
[365266352,1749570432733,-1276.0,0.00016602,2]
[365266353,1749570432758,-2047.05590204,0.00016602,2]
[365266354,1749570432996,-490.0,0.00016438,2]
[365266355,1749570433022,-428.71409796,0.00016602,2]
[365266356,1749570433045,-490.0,0.00016602,2]
[365266357,1749570433069,-490.0,0.00016602,2]
[365266358,1749570433092,-490.0,0.00016602,2]
[365266359,1749570433115,-1317.33,0.00016602,2]
[365266360,1749570433138,-490.0,0.00016602,2]
[365266361,1749570433160,-516.88,0.00016602,2]
[365266362,1749570433183,-490.0,0.00016602,2]
[365266363,1749570433205,-490.0,0.00016602,2]
[365266364,1749570433227,-490.0,0.00016602,2]
[365266365,1749570433252,-490.0,0.00016602,2]
[365266366,1749570433278,-490.0,0.00016602,2]
[365266367,1749570433302,-693.4,0.00016602,2]
[365266368,1749570433324,-490.0,0.00016602,2]
[365266369,1749570433348,-512.04,0.00016602,2]
[365266370,1749570433373,-490.0,0.00016602,2]
[365266371,1749570433397,-490.0,0.00016602,2]
[365266372,1749570433420,-490.0,0.00016602,2]
[365266373,1749570433443,-490.0,0.00016602,2]
[365266374,1749570433466,-490.0,0.00016602,2]
[365266375,1749570433489,-490.0,0.00016602,2]
[365266376,1749570433511,-490.0,0.00016602,2]
[365266377,1749570433535,-551.0,0.00016602,2]
[365266378,1749570433557,-2486.33,0.00016602,2]
[365266379,1749570433581,-257.09,0.00016602,2]
[365266380,1749570433603,-500.49,0.00016602,2]
[365266381,1749570433625,-490.0,0.00016602,2]
[365266382,1749570433647,-490.0,0.00016602,2]
[365266383,1749570433668,-490.0,0.00016602,2]
[365266384,1749570433694,-490.0,0.00016602,2]
[365266385,1749570433716,-490.0,0.00016602,2]
[365266386,1749570433741,-1703.29,0.00016602,2]
[365266387,1749570433764,-490.0,0.00016602,2]
[365266388,1749570433787,-490.0,0.00016602,2]
[365266389,1749570433810,-490.0,0.00016602,2]
[365266390,1749570433835,-490.0,0.00016602,2]
[365266391,1749570433857,-11955.32,0.00016602,2]
[365266392,1749570433878,-490.0,0.00016602,2]
[365266393,1749570433901,-490.0,0.00016602,2]
[365266394,1749570433921,-490.0,0.00016602,2]
[365266395,1749570433942,-490.0,0.00016602,2]
[365266396,1749570433963,-490.0,0.00016602,2]
[365266397,1749570433985,-490.0,0.00016602,2]
[365266398,1749570434010,-2611.14,0.00016602,2]
[365266399,1749570434031,-490.0,0.00016602,2]
[365266400,1749570434053,-490.0,0.00016602,2]
[365266401,1749570434078,-631.04,0.00016602,2]
[365266402,1749570434101,-490.0,0.00016602,2]
[365266403,1749570434122,-490.0,0.00016602,2]
[365266404,1749570434144,-490.0,0.00016602,2]
[365266405,1749570434166,-673.6,0.00016602,2]
[365266406,1749570434188,-490.0,0.00016602,2]
[365266407,1749570434211,-601.0665653,0.00016602,2]
[365266408,1749570434234,-490.0,0.00016602,2]
[365266409,1749570434257,-490.0,0.00016602,2]
[365266410,1749570434279,-603.49,0.00016602,2]
[365266411,1749570434302,-490.0,0.00016602,2]
[365266412,1749570434324,-490.0,0.00016602,2]
[365266413,1749570434349,-642.66,0.00016602,2]
[365266414,1749570434372,-490.0,0.00016602,2]
[365266415,1749570434396,-306.05,0.00016602,2]
[365266416,1749570434417,-533.495,0.00016602,2]
[365266417,1749570434439,-500.0,0.00016603,2]
[365266418,1749570434461,-1000.0,0.00016627,2]
[365266419,1749570434483,-362.19751707,0.00016646,2]
[365266420,1749570434506,-2030.296672,0.00016647,2]
[365266421,1749570434529,-1947.84519271,0.00016667,2]
[365266422,1749570434552,-2105.41764886,0.00016702,2]
[365266423,1749570434573,-362.19751707,0.0001671,2]
[365266424,1749570434595,-1947.84519263,0.00016725,2]
[365266425,1749570434617,-354.51,0.00016733,2]
[365266426,1749570434642,-2183.31810187,0.00016757,2]
[365266427,1749570434663,-816.14,0.00016757,2]
[365266428,1749570434684,-500.0,0.00016766,2]
[365266429,1749570434705,-460.62,0.00016766,2]
[365266430,1749570434973,-500.0,0.00016766,2]
[365266431,1749570434997,-500.0,0.00016766,2]
[365266432,1749570435020,-500.0,0.00016766,2]
[365266433,1749570435041,-490.0,0.00016767,2]
[365266434,1749570435061,-490.0,0.00016767,2]
[365266435,1749570435083,-490.0,0.00016767,2]
[365266436,1749570435104,-490.0,0.00016767,2]
[365266437,1749570435125,-490.0,0.00016767,2]
[365266438,1749570435146,-490.0,0.00016767,2]
[365266439,1749570435167,-177.95160715,0.00016767,2]
[365266440,1749570435189,-490.0,0.00016767,2]
[365266441,1749570435211,-490.0,0.00016767,2]
[365266442,1749570435233,-490.0,0.00016767,2]
[365266443,1749570435255,-490.0,0.00016767,2]
[365266444,1749570435280,-537.73,0.00016767,2]
[365266445,1749570435303,-490.0,0.00016767,2]
[365266446,1749570435328,-1177.92,0.00016767,2]
[365266447,1749570435348,-174.13726702,0.00016767,2]
[365266448,1749570435370,-490.0,0.00016767,2]
[365266449,1749570435392,-162.69,0.00016767,2]
[365266450,1749570435418,-650.74,0.00016767,2]
[365266451,1749570435440,-490.0,0.00016767,2]
[365266452,1749570435464,-499.01825368,0.00016767,2]
[365266453,1749570435488,-490.0,0.00016767,2]
[365266454,1749570435509,-490.0,0.00016767,2]
[365266455,1749570435532,-490.0,0.00016767,2]
[365266456,1749570435554,-490.0,0.00016767,2]
[365266457,1749570435577,-1276.0,0.00016767,2]
[365266458,1749570435601,-2475.77,0.00016767,2]
[365266459,1749570435623,-490.0,0.00016767,2]
[365266460,1749570435646,-490.0,0.00016767,2]
[365266461,1749570435668,-490.0,0.00016767,2]
[365266462,1749570435690,-1317.33,0.00016767,2]
[365266463,1749570435711,-490.0,0.00016767,2]
[365266464,1749570435733,-516.88,0.00016767,2]
[365266465,1749570435755,-490.0,0.00016767,2]
[365266466,1749570435780,-490.0,0.00016767,2]
[365266467,1749570435802,-490.0,0.00016767,2]
[365266468,1749570435827,-490.0,0.00016767,2]
[365266469,1749570435850,-490.0,0.00016767,2]
[365266470,1749570435874,-693.4,0.00016767,2]
[365266471,1749570435897,-490.0,0.00016767,2]
[365266472,1749570435925,-490.0,0.00016767,2]
[365266473,1749570435948,-490.0,0.00016767,2]
[365266474,1749570435972,-327.82,0.00016767,2]
[365266475,1749570435995,-490.0,0.00016767,2]
[365266476,1749570436018,-490.0,0.00016767,2]
[365266477,1749570436042,-490.0,0.00016767,2]
[365266478,1749570436064,-551.0,0.00016767,2]
[365266479,1749570436089,-490.0,0.00016767,2]
[365266480,1749570436112,-2486.33,0.00016767,2]
[365266481,1749570436135,-500.49,0.00016767,2]
[365266482,1749570436156,-490.0,0.00016767,2]
[365266483,1749570436177,-490.0,0.00016767,2]
[365266484,1749570436198,-490.0,0.00016767,2]
[365266485,1749570436223,-1703.29,0.00016767,2]
[365266486,1749570436243,-490.0,0.00016767,2]
[365266487,1749570436263,-490.0,0.00016767,2]
[365266488,1749570436286,-490.0,0.00016767,2]
[365266489,1749570436310,-490.0,0.00016767,2]
[365266490,1749570436332,-11955.32,0.00016767,2]
[365266491,1749570436353,-490.0,0.00016767,2]
[365266492,1749570436375,-490.0,0.00016767,2]
[365266493,1749570436399,-490.0,0.00016767,2]
[365266494,1749570436421,-490.0,0.00016767,2]
[365266495,1749570436443,-490.0,0.00016767,2]
[365266496,1749570436467,-347.31794031,0.00016767,2]
[365266497,1749570436494,-2611.14,0.00016767,2]
[365266498,1749570436517,-490.0,0.00016767,2]
[365266499,1749570436541,-490.0,0.00016767,2]
[365266500,1749570436567,-631.04,0.00016767,2]
[365266501,1749570436593,-490.0,0.00016767,2]
[365266502,1749570436619,-236.74,0.00016767,2]
[365266503,1749570436641,-490.0,0.00016767,2]
[365266504,1749570436665,-673.6,0.00016767,2]
[365266505,1749570436689,-490.0,0.00016767,2]
[365266506,1749570436714,-490.0,0.00016767,2]
[365266507,1749570436736,-490.0,0.00016767,2]
[365266508,1749570436759,-603.49,0.00016767,2]
[365266509,1749570436782,-490.0,0.00016767,2]
[365266510,1749570436805,-490.0,0.00016767,2]
[365266511,1749570436831,-642.66,0.00016767,2]
[365266512,1749570436855,-490.0,0.00016767,2]
[365266513,1749570436877,-362.19751707,0.00016775,2]
[365266514,1749570436898,-854.666126,0.0001678,2]
[365266515,1749570436920,-1947.84519263,0.00016783,2]
[365266516,1749570436942,-354.51,0.000168,2]
[365266517,1749570436963,-1000.0,0.000168,2]
[365266518,1749570436986,-461.25,0.000168,2]
[365266519,1749570437010,-2264.10087164,0.00016812,2]
[365266520,1749570437034,-300.55771188,0.00016831,2]
[365266521,1749570437420,-1750.41060631,0.00016831,2]
[365266522,1749570437443,-362.19751707,0.00016839,2]
[365266523,1749570437464,-1947.84519263,0.00016841,2]
[365266524,1749570437485,-2372.7528,0.00016846,2]
[365266525,1749570437507,-2347.87260389,0.00016867,2]
[365266526,1749570437531,-2050.9683181,0.00016868,2]
[365266527,1749570437553,-500.0,0.00016891,2]
[365266528,1749570437575,-362.19751707,0.00016903,2]
[365266529,1749570437596,-197.576,0.00016904,2]
[365266530,1749570437620,-2493.238,0.00016904,2]
[365266531,1749570437643,-2050.9683181,0.00016904,2]
[365266532,1749570437666,-833.29909032,0.00016908,2]
[365266533,1749570437688,-2434.74389024,0.00016922,2]
[365266534,1749570437709,-490.0,0.00016931,2]
[365266535,1749570437731,-490.0,0.00016931,2]
[365266536,1749570437754,-490.0,0.00016931,2]
[365266537,1749570437777,-165.07,0.00016931,2]
[365266538,1749570437801,-248.46455533,0.00016931,2]
[365266539,1749570437822,-490.0,0.00016931,2]
[365266540,1749570437843,-490.0,0.00016931,2]
[365266541,1749570437865,-490.0,0.00016931,2]
[365266542,1749570437887,-490.0,0.00016931,2]
[365266543,1749570437908,-490.0,0.00016931,2]
[365266544,1749570437929,-150.0,0.00016931,2]
[365266545,1749570437950,-150.0,0.00016931,2]
[365266546,1749570437972,-150.0,0.00016931,2]
[365266547,1749570437992,-150.0,0.00016931,2]
[365266548,1749570438013,-490.0,0.00016931,2]
[365266549,1749570438039,-1177.92,0.00016931,2]
[365266550,1749570438061,-490.0,0.00016931,2]
[365266551,1749570438085,-650.74,0.00016931,2]
[365266552,1749570438109,-490.0,0.00016931,2]
[365266553,1749570438131,-490.0,0.00016931,2]
[365266554,1749570438154,-511.67,0.00016931,2]
[365266555,1749570438176,-490.0,0.00016931,2]
[365266556,1749570438197,-490.0,0.00016931,2]
[365266557,1749570438220,-1276.0,0.00016931,2]
[365266558,1749570438242,-2475.77,0.00016931,2]
[365266559,1749570438264,-490.0,0.00016931,2]
[365266560,1749570438287,-490.0,0.00016931,2]
[365266561,1749570438309,-490.0,0.00016931,2]
[365266562,1749570438332,-1317.33,0.00016931,2]
[365266563,1749570438355,-490.0,0.00016931,2]
[365266564,1749570438376,-516.88,0.00016931,2]
[365266565,1749570438399,-490.0,0.00016931,2]
[365266566,1749570438421,-471.74,0.00016931,2]
[365266567,1749570438444,-490.0,0.00016931,2]
[365266568,1749570438469,-490.0,0.00016931,2]
[365266569,1749570438491,-490.0,0.00016931,2]
[365266570,1749570438512,-490.0,0.00016931,2]
[365266571,1749570438536,-693.4,0.00016931,2]
[365266572,1749570438562,-490.0,0.00016931,2]
[365266573,1749570438588,-490.0,0.00016931,2]
[365266574,1749570438609,-490.0,0.00016931,2]
[365266575,1749570438632,-490.0,0.00016931,2]
[365266576,1749570438654,-498.72,0.00016931,2]
[365266577,1749570438677,-551.0,0.00016931,2]
[365266578,1749570438701,-490.0,0.00016931,2]
[365266579,1749570438723,-2486.33,0.00016931,2]
[365266580,1749570438746,-500.49,0.00016931,2]
[365266581,1749570438767,-490.0,0.00016931,2]
[365266582,1749570438791,-490.0,0.00016931,2]
[365266583,1749570438814,-490.0,0.00016931,2]
[365266584,1749570439017,-500.0,0.00016931,2]
[365266585,1749570439058,-1703.29,0.00016931,2]
[365266586,1749570439080,-490.0,0.00016931,2]
[365266587,1749570439103,-490.0,0.00016931,2]
[365266588,1749570439125,-490.0,0.00016931,2]
[365266589,1749570439150,-490.0,0.00016931,2]
[365266590,1749570439172,-11955.32,0.00016931,2]
[365266591,1749570439193,-490.0,0.00016931,2]
[365266592,1749570439216,-490.0,0.00016931,2]
[365266593,1749570439238,-490.0,0.00016931,2]
[365266594,1749570439261,-443.36,0.00016931,2]
[365266595,1749570439284,-373.59980908,0.00016931,2]
[365266596,1749570439311,-2611.14,0.00016931,2]
[365266597,1749570439334,-490.0,0.00016931,2]
[365266598,1749570439356,-490.0,0.00016931,2]
[365266599,1749570439381,-631.04,0.00016931,2]
[365266600,1749570439406,-490.0,0.00016931,2]
[365266601,1749570439428,-490.0,0.00016931,2]
[365266602,1749570439455,-673.6,0.00016931,2]
[365266603,1749570439480,-490.0,0.00016931,2]
[365266604,1749570439504,-490.0,0.00016931,2]
[365266605,1749570439528,-273.32850094,0.00016931,2]
[365266606,1749570439550,-603.49,0.00016931,2]
[365266607,1749570439573,-490.0,0.00016931,2]
[365266608,1749570439594,-490.0,0.00016931,2]
[365266609,1749570439619,-642.66,0.00016931,2]
[365266610,1749570439642,-490.0,0.00016931,2]
[365266611,1749570439664,-173.21,0.00016938,2]
[365266612,1749570439686,-2050.9683181,0.00016941,2]
[365266613,1749570439708,-234.0,0.00016956,3]
[365266614,1749570439730,-150.0,0.00016958,2]
[365266615,1749570439752,-500.0,0.00016958,2]
[365266616,1749570439776,-362.19751707,0.00016967,2]
[365266617,1749570439798,-151.0,0.00016977,2]
[365266618,1749570439819,-151.0,0.00016977,2]
[365266619,1749570439846,-2524.82941417,0.00016977,2]
[365266620,1749570439869,-2050.9683181,0.00016977,2]
[365266621,1749570439890,-500.0,0.00016985,2]
[365266622,1749570439913,-200.0,0.00016986,2]
[365266623,1749570439935,-500.0,0.00016986,2]
[365266624,1749570439956,-500.0,0.00017013,2]
[365266625,1749570439978,-2050.9683181,0.00017014,2]
[365266626,1749570440000,-362.19751707,0.00017032,2]
[365266627,1749570440027,-2618.2481025,0.00017032,2]
[365266628,1749570440048,-151.0,0.00017037,2]
[365266629,1749570440070,-500.0,0.00017041,2]
[365266630,1749570440091,-151.0,0.0001705,2]
[365266631,1749570440114,-479.217574,0.0001705,2]
[365266632,1749570440138,-479.217574,0.0001705,2]
[365266633,1749570440159,-151.0,0.0001705,2]
[365266634,1749570440181,-151.0,0.0001705,2]
[365266635,1749570440205,-151.0,0.0001705,2]
[365266636,1749570440227,-151.0,0.0001705,2]
[365266637,1749570440249,-155.270461,0.0001705,2]
[365266638,1749570440272,-151.0,0.0001705,2]
[365266639,1749570440294,-171.090336,0.0001705,2]
[365266640,1749570440316,-151.0,0.0001705,2]
[365266641,1749570440337,-151.0,0.0001705,2]
[365266642,1749570440358,-151.0,0.0001705,2]
[365266643,1749570440380,-2050.9683181,0.0001705,2]
[365266644,1749570440402,-151.0,0.00017067,2]
[365266645,1749570440423,-151.0,0.00017067,2]
[365266646,1749570440445,-151.0,0.00017067,2]
[365266647,1749570440466,-152.028849,0.00017067,2]
[365266648,1749570440490,-235.509538,0.00017067,2]
[365266649,1749570440515,-235.509538,0.00017067,2]
[365266650,1749570440538,-151.0,0.00017067,2]
[365266651,1749570440561,-227.628302,0.00017067,2]
[365266652,1749570440585,-227.628302,0.00017067,2]
[365266653,1749570440609,-500.0,0.00017068,2]
[365266654,1749570440633,-2050.9683181,0.00017087,2]
[365266655,1749570440658,-2715.12328229,0.00017087,2]
[365266656,1749570440681,-500.0,0.00017094,2]
[365266657,1749570440704,-151.0,0.00017095,2]
[365266658,1749570440727,-490.0,0.00017095,2]
[365266659,1749570440750,-490.0,0.00017095,2]
[365266660,1749570440773,-192.062464,0.00017095,2]
[365266661,1749570440797,-328.61,0.00017095,2]
[365266662,1749570440818,-151.36172,0.00017095,2]
[365266663,1749570440843,-490.0,0.00017095,2]
[365266664,1749570440866,-490.0,0.00017095,2]
[365266665,1749570440889,-490.0,0.00017095,2]
[365266666,1749570440911,-1168.379888,0.00017095,2]
[365266667,1749570440934,-1168.379888,0.00017095,2]
[365266668,1749570440957,-490.0,0.00017095,2]
[365266669,1749570440983,-1177.92,0.00017095,2]
[365266670,1749570441006,-490.0,0.00017095,2]
[365266671,1749570441044,-650.74,0.00017095,2]
[365266672,1749570441071,-490.0,0.00017095,2]
[365266673,1749570441094,-490.0,0.00017095,2]
[365266674,1749570441117,-490.0,0.00017095,2]
[365266675,1749570441142,-490.0,0.00017095,2]
[365266676,1749570441167,-1276.0,0.00017095,2]
[365266677,1749570441192,-2475.77,0.00017095,2]
[365266678,1749570441215,-490.0,0.00017095,2]
[365266679,1749570441238,-490.0,0.00017095,2]
[365266680,1749570441261,-490.0,0.00017095,2]
[365266681,1749570441285,-1317.33,0.00017095,2]
[365266682,1749570441309,-490.0,0.00017095,2]